bitfinex-derivatives/quotes_BTCF0:USTF0_20241213
["timestamp","ask_amount","ask_price","bid_price","bid_amount"]
[1734068452532,0.001,100020.0,100010.0,4.26831313]
[1734068452937,0.001,100020.0,100010.0,3.8774532]
[1734068454539,0.001,100020.0,100010.0,4.2469332]
[1734068454933,0.001,100020.0,100010.0,3.5253332]
[1734068455140,0.001,100020.0,100010.0,3.70718951]
[1734068456535,0.001,100020.0,100010.0,3.78273581]
[1734068456737,0.001,100020.0,100010.0,3.18984548]
[1734068457434,0.001,100020.0,100010.0,3.18703597]
[1734068457840,0.001,100020.0,100010.0,2.46543597]
[1734068458139,0.001,100020.0,100010.0,3.18703597]
[1734068458641,0.001,100020.0,100010.0,2.46543597]
[1734068458843,0.001,100020.0,100010.0,3.18703597]
[1734068462536,0.001,100020.0,100010.0,3.06096147]
[1734068462839,0.001,100020.0,100010.0,3.3709734]
[1734068463142,0.001,100020.0,100010.0,2.61070392]
[1734068463536,0.094,100020.0,100010.0,2.61070392]
[1734068463737,0.094,100020.0,100010.0,2.53743365]
[1734068463943,0.15703725,100020.0,100010.0,1.75188011]
[1734068464146,0.15703725,100020.0,100010.0,1.81491736]
[1734068464441,0.094,100020.0,100010.0,1.81491736]
[1734068468538,0.094,100020.0,100010.0,2.11420125]
[1734068469146,0.094,100020.0,100010.0,1.81564549]
[1734068469340,0.094,100020.0,100010.0,2.11965542]
[1734068469745,0.094,100020.0,100010.0,2.11989495]
[1734068469939,0.094,100020.0,100010.0,2.90989495]
[1734068470250,0.094,100020.0,100010.0,2.61016228]
[1734068470850,0.094,100020.0,100010.0,2.61042266]
[1734068471552,0.094,100020.0,100010.0,2.90961914]
[1734068474254,0.094,100020.0,100010.0,2.90905828]
[1734068474943,0.094,100020.0,100010.0,2.61007487]
[1734068477539,0.094,100020.0,100010.0,2.60980389]
[1734068483151,0.094,100020.0,100010.0,2.35881416]
[1734068483351,0.094,100020.0,100010.0,2.60946491]
[1734068485054,0.094,100020.0,100010.0,2.9082815]
[1734068485462,0.001,100020.0,100010.0,2.67160443]
[1734068485750,0.001,100020.0,100010.0,2.40645745]
[1734068486846,0.001,100020.0,100010.0,2.82525225]
[1734068487046,0.001,100020.0,100010.0,3.16995021]
[1734068492258,0.001,100020.0,100010.0,3.16659694]
[1734068496668,0.001,100020.0,100010.0,3.04052244]
[1734068496964,0.001,100020.0,100010.0,3.16659694]
[1734068498861,0.001,100020.0,100010.0,3.04052244]
[1734068499062,0.001,100020.0,100010.0,3.16659694]
[1734068501369,0.001,100020.0,100010.0,3.16932931]
[1734068513379,0.001,100020.0,100010.0,3.64910148]
[1734068514472,0.001,100020.0,100010.0,3.76219109]
[1734068515074,0.001,100020.0,100010.0,3.64910148]
[1734068515274,0.001,100020.0,100010.0,3.7621995]
[1734068515672,0.001,100020.0,100010.0,3.16932931]
[1734068516372,0.001,100020.0,100010.0,3.64910148]
[1734068517779,0.001,100020.0,100010.0,3.16932931]
[1734068519978,0.001,100020.0,100010.0,2.89917281]
[1734068520176,0.35802013,100020.0,100010.0,1.69423281]
[1734068520379,0.88184238,100020.0,100010.0,0.97263281]
[1734068520584,0.9416983,100020.0,100010.0,0.97263281]
[1734068520781,1.01144371,100020.0,100010.0,0.85498905]
[1734068521080,1.01144371,100020.0,100010.0,0.9180263]
[1734068521272,0.83179046,100020.0,100010.0,0.42863926]
[1734068522388,0.95153388,100020.0,100010.0,0.42863926]
[1734068523385,1.31457113,100020.0,100010.0,0.13882923]
[1734068523588,0.049982,100010.0,100000.0,0.23991003]
[1734068523794,0.049987,100000.0,99998.0,0.23991003]
[1734068523992,0.04999,99994.0,99993.0,0.23991003]
[1734068524283,0.04999,99994.0,99989.0,0.049992]
[1734068524284,0.049992,99990.0,99989.0,0.049992]
[1734068526077,0.050992,99990.0,99989.0,0.056992]
[1734068526477,0.051992,99990.0,99989.0,0.007]
[1734068527493,0.5128025,99990.0,99989.0,0.007]
[1734068529986,0.8128025,99990.0,99989.0,0.007]
[1734068530190,0.7628105,99990.0,99970.0,0.0305]
[1734068530389,0.050002,99971.0,99970.0,0.0305]
[1734068530881,0.050002,99971.0,99970.0,0.8205]
[1734068531787,0.050002,99971.0,99970.0,0.8235]
[1734068532290,0.049999,99977.0,99975.0,0.049999]
[1734068534483,0.049999,99977.0,99975.0,0.051999]
[1734068534684,0.050999,99977.0,99975.0,0.051999]
[1734068535893,0.050999,99977.0,99975.0,0.002]
[1734068538597,0.3608,99976.0,99975.0,0.002]
[1734068540697,0.411799,99976.0,99975.0,0.002]
[1734068541388,0.411799,99976.0,99974.0,0.05]
[1734068545090,0.43202665,99976.0,99974.0,0.05]
[1734068549602,0.05,99974.0,99973.0,0.23991003]
[1734068550493,0.050002,99971.0,99970.0,0.0305]
[1734068551605,0.050002,99971.0,99970.0,0.0315]
[1734068551906,0.051002,99971.0,99970.0,0.0315]
[1734068556296,0.051002,99971.0,99970.0,0.59800701]
[1734068557611,0.051002,99971.0,99970.0,0.29815847]
[1734068563513,0.051002,99971.0,99970.0,0.29827961]
[1734068568220,0.051002,99971.0,99970.0,0.29835571]
[1734068569021,0.051002,99971.0,99970.0,0.59823169]
[1734068569323,0.051002,99971.0,99970.0,0.29835571]
[1734068569822,0.1510315,99971.0,99970.0,0.0315]
[1734068570319,0.1510315,99971.0,99963.0,0.29987616]
[1734068570522,0.050006,99963.0,99962.0,0.29987616]
[1734068570725,0.050006,99963.0,99962.0,0.56851655]
[1734068570914,0.050006,99963.0,99962.0,0.26864039]
[1734068571624,0.050007,99961.0,99960.0,0.29982759]
[1734068571814,0.08982356,99962.0,99959.0,0.29982759]
[1734068572015,0.050007,99960.0,99959.0,0.29982759]
[1734068572208,0.050007,99960.0,99959.0,0.26934933]
[1734068572416,0.050007,99960.0,99959.0,0.26923038]
[1734068572619,0.050007,99960.0,99959.0,0.29979283]
[1734068572922,0.050008,99959.0,99958.0,0.29979283]
[1734068573422,0.050008,99958.0,99957.0,0.29979283]
[1734068573626,0.050008,99958.0,99957.0,0.56957351]
[1734068573813,0.050008,99958.0,99957.0,0.29979283]
[1734068574420,0.050008,99958.0,99952.0,0.033]
[1734068574421,0.050009,99957.0,99956.0,0.29979283]
[1734068574622,0.050009,99957.0,99956.0,0.2697455]
[1734068574821,0.050009,99957.0,99956.0,0.29969154]
[1734068575217,0.050009,99957.0,99956.0,0.56952597]
[1734068575417,0.050009,99956.0,99955.0,0.29969154]
[1734068575618,0.050009,99956.0,99955.0,0.56940285]
[1734068576323,0.3608,99956.0,99954.0,0.29969154]
[1734068576526,0.05001,99955.0,99954.0,0.29969154]
[1734068576819,0.05001,99955.0,99954.0,0.56963488]
[1734068577023,0.05001,99955.0,99954.0,0.26994334]
[1734068577216,0.05001,99955.0,99954.0,0.56950101]
[1734068577619,0.05001,99955.0,99954.0,0.29962445]
[1734068578325,0.05001,99955.0,99954.0,0.30362445]
[1734068578720,0.05001,99955.0,99954.0,0.004]
[1734068578920,0.001,99955.0,99954.0,0.30357695]
[1734068579725,0.001,99955.0,99954.0,0.004]
[1734068579927,0.05101,99955.0,99954.0,0.004]
[1734068580424,0.05101,99955.0,99954.0,0.30357695]
[1734068580822,0.05101,99955.0,99954.0,0.57350983]
[1734068581126,0.05101,99955.0,99954.0,0.30357695]
[1734068581517,0.05101,99955.0,99954.0,0.004]
[1734068583619,0.05101,99955.0,99954.0,0.27362063]
[1734068584023,0.05101,99955.0,99954.0,1.06362063]
[1734068584527,0.05101,99955.0,99954.0,1.36317153]
[1734068584722,0.05101,99955.0,99954.0,0.794]
[1734068585226,0.05101,99955.0,99954.0,0.004]
[1734068587027,0.15105552,99955.0,99954.0,0.004]
[1734068588133,0.050013,99949.0,99948.0,0.23963379]
[1734068588323,0.15105552,99955.0,99947.0,0.23963379]
[1734068588635,0.050014,99947.0,99940.0,0.2995509]
[1734068588933,0.050014,99947.0,99946.0,0.23956766]
[1734068589522,0.050014,99946.0,99945.0,0.23956766]
[1734068589931,0.050014,99946.0,99936.0,0.050019]
[1734068589932,0.050015,99945.0,99944.0,0.23956766]
[1734068590731,0.050015,99944.0,99943.0,0.28958266]
[1734068590939,0.050015,99944.0,99943.0,0.050015]
[1734068592031,0.051015,99944.0,99943.0,0.050015]
[1734068592828,0.051015,99944.0,99943.0,0.055015]
[1734068600636,0.051015,99944.0,99943.0,0.005]
[1734068601935,0.050016,99943.0,99942.0,0.2995509]
[1734068602336,0.050016,99943.0,99942.0,0.58169698]
[1734068602838,0.050016,99943.0,99942.0,0.2995509]
[1734068603340,0.050016,99943.0,99942.0,0.58176625]
[1734068603550,0.050016,99943.0,99942.0,0.28221535]
[1734068603937,0.050016,99943.0,99942.0,0.28421535]
[1734068604145,0.051016,99943.0,99942.0,0.28421535]
[1734068605038,0.051016,99943.0,99942.0,0.33423135]
[1734068611440,0.051016,99943.0,99942.0,1.12423135]
[1734068612044,0.051016,99943.0,99942.0,0.33423135]
[1734068612235,0.051016,99943.0,99942.0,0.3322199]
[1734068613544,0.07098575,99943.0,99942.0,0.3322199]
[1734068615040,0.07098575,99943.0,99942.0,0.73572693]
[1734068615347,0.07098575,99943.0,99942.0,0.37600012]
[1734068619442,0.07098575,99943.0,99942.0,0.43258679]
[1734068623749,0.07098575,99943.0,99942.0,0.38257079]
[1734068625959,0.07098575,99943.0,99942.0,0.38303892]
[1734068630652,0.07098575,99943.0,99942.0,0.38228601]
[1734068630953,0.07098575,99943.0,99942.0,0.33850579]
[1734068631547,0.07098575,99943.0,99942.0,0.38228617]
[1734068632651,0.07098575,99943.0,99942.0,0.28191912]
[1734068635060,0.07098575,99943.0,99942.0,0.2819633]
[1734068635752,0.07098575,99943.0,99942.0,0.64218956]
[1734068637760,0.07098575,99943.0,99942.0,0.69880055]
[1734068637948,0.07098575,99943.0,99942.0,0.33857429]
[1734068638154,0.07098575,99943.0,99942.0,0.38235472]
[1734068641653,0.051016,99943.0,99942.0,0.43237072]
[1734068641954,0.051016,99943.0,99942.0,0.76551214]
[1734068652056,0.051016,99943.0,99942.0,0.71549614]
[1734068652671,0.051016,99943.0,99942.0,0.38235472]
[1734068656463,0.051016,99943.0,99942.0,0.43237072]
[1734068656663,0.051016,99943.0,99942.0,0.43140724]
[1734068658062,0.051016,99943.0,99942.0,0.43145627]
[1734068659167,0.051016,99943.0,99942.0,0.38767584]
[1734068662270,0.051016,99943.0,99942.0,0.43145376]
[1734068663061,0.051016,99943.0,99942.0,0.76407494]
[1734068663269,0.051016,99943.0,99942.0,0.76407503]
[1734068666770,0.051016,99943.0,99942.0,0.71405903]
[1734068670078,0.051016,99943.0,99942.0,0.71614445]
[1734068670378,0.051016,99943.0,99942.0,0.71614838]
[1734068671872,0.08982356,99950.0,99943.0,0.050016]
[1734068672074,0.08982356,99953.0,99947.0,0.36012503]
[1734068672269,0.08982356,99954.0,99950.0,0.050012]
[1734068672473,0.08982356,99954.0,99951.0,0.28000465]
[1734068672784,0.08982356,99954.0,99950.0,0.050012]
[1734068672785,0.13983356,99955.0,99952.0,1.07000465]
[1734068673077,0.16026034,99955.0,99953.0,0.28000465]
[1734068673380,0.16026034,99955.0,99954.0,0.28000465]
[1734068673573,0.07043678,99955.0,99954.0,0.28000465]
[1734068673973,0.07143678,99955.0,99954.0,0.28000465]
[1734068674173,0.001,99955.0,99954.0,0.28000465]
[1734068674486,0.001,99955.0,99954.0,0.33001465]
[1734068677189,0.001,99955.0,99954.0,0.28000465]
[1734068677576,0.0324,99955.0,99954.0,0.28000465]
[1734068678596,0.0324,99955.0,99954.0,0.57998446]
[1734068678791,0.0324,99955.0,99954.0,0.5799835]
[1734068678982,0.0324,99955.0,99954.0,0.28000465]
[1734068679889,0.05001,99954.0,99953.0,0.29997689]
[1734068680089,0.05001,99954.0,99953.0,0.27938943]
[1734068681187,0.05101,99954.0,99953.0,0.27938943]
[1734068681389,0.09083858,99954.0,99953.0,0.29997151]
[1734068681587,0.2408951,99954.0,99953.0,0.29997154]
[1734068684289,0.15105652,99954.0,99953.0,0.29997154]
[1734068684487,0.050011,99952.0,99951.0,0.29997154]
[1734068684681,0.13984687,99952.0,99951.0,0.29997154]
[1734068686884,0.14084687,99952.0,99951.0,0.29997154]
[1734068687779,0.051011,99952.0,99951.0,0.27950764]
[1734068690287,0.050013,99949.0,99948.0,0.29998442]
[1734068690491,0.050013,99948.0,99947.0,0.29998442]
[1734068690687,0.08983267,99949.0,99946.0,0.29998442]
[1734068690988,0.08983267,99947.0,99944.0,0.29998442]
[1734068691189,0.3608,99945.0,99943.0,0.29998442]
[1734068691388,0.050015,99944.0,99943.0,0.29998442]
[1734068691584,0.050015,99944.0,99943.0,0.58084765]
[1734068691786,0.15006752,99944.0,99943.0,0.58084765]
[1734068692197,0.15006752,99944.0,99943.0,0.29998442]
[1734068692696,0.13205252,99944.0,99942.0,0.29998442]
[1734068692994,0.050016,99943.0,99942.0,0.29998442]
[1734068693291,0.050016,99943.0,99941.0,0.29998442]
[1734068693496,0.050016,99942.0,99941.0,0.29998442]
[1734068693696,0.050016,99942.0,99941.0,0.58105225]
[1734068694194,0.050016,99942.0,99941.0,0.29998442]
[1734068694397,0.050017,99941.0,99939.0,0.29998442]
[1734068694583,0.050017,99940.0,99939.0,0.29998442]
[1734068695089,0.10006003,99940.0,99938.0,0.29998442]
[1734068695297,0.050018,99939.0,99938.0,0.29998442]
[1734068696099,0.10006003,99939.0,99937.0,0.29998442]
[1734068696287,0.050018,99938.0,99937.0,0.29998442]
[1734068696488,0.050018,99938.0,99937.0,0.58135402]
[1734068696690,0.15007953,99938.0,99937.0,0.58135402]
[1734068697092,0.15007953,99938.0,99937.0,0.29998442]
[1734068697484,0.15107953,99938.0,99937.0,0.30098442]
[1734068698098,0.15107953,99938.0,99937.0,0.001]
[1734068704008,0.51187953,99938.0,99937.0,0.001]
[1734068706703,0.46186153,99938.0,99932.0,0.29998442]
[1734068706907,0.46186153,99938.0,99929.0,0.29998442]
[1734068706908,0.050021,99933.0,99929.0,0.29998442]
[1734068707111,0.050024,99927.0,99926.0,0.29998442]
[1734068707410,0.050024,99927.0,99926.0,0.04378779]
[1734068707908,0.050024,99927.0,99925.0,0.29998442]
[1734068708107,0.050025,99925.0,99924.0,0.29998442]
[1734068708311,0.050025,99925.0,99924.0,0.61678041]
[1734068708811,0.050025,99925.0,99924.0,0.29998442]
[1734068709112,0.050025,99925.0,99923.0,0.29998442]
[1734068709610,0.050026,99923.0,99922.0,0.29998442]
[1734068709919,0.050027,99921.0,99920.0,0.29998442]
[1734068710101,0.050027,99921.0,99920.0,0.34377445]
[1734068710308,0.050027,99921.0,99920.0,0.04379003]
[1734068710512,0.410827,99921.0,99920.0,0.04379003]
[1734068710699,0.3608,99921.0,99919.0,0.29998442]
[1734068711012,0.3608,99921.0,99914.0,0.29998442]
[1734068711013,0.050029,99917.0,99914.0,0.29998442]
[1734068711217,0.050029,99917.0,99912.0,0.0326]
[1734068712300,0.051029,99917.0,99912.0,0.0326]
[1734068713303,0.051029,99917.0,99915.0,0.00350127]
[1734068714502,0.06099561,99917.0,99915.0,0.00350127]
[1734068720413,0.06099561,99917.0,99915.0,0.00150127]
[1734068722017,0.06099561,99917.0,99912.0,0.0326]
[1734068722018,0.050031,99913.0,99912.0,0.0326]
[1734068723209,0.051031,99913.0,99912.0,0.0326]
[1734068723721,0.411831,99913.0,99912.0,0.0326]
[1734068727323,0.050032,99911.0,99910.0,7.904e-05]
[1734068727907,0.15011957,99911.0,99910.0,7.904e-05]
[1734068728521,0.15011957,99911.0,99910.0,0.00107904]
[1734068728713,0.15111957,99911.0,99910.0,0.00107904]
[1734068729816,0.15011957,99911.0,99910.0,0.00107904]
[1734068730010,0.15111957,99911.0,99910.0,0.00107904]
[1734068730923,0.15111957,99911.0,99900.0,0.1]
[1734068730924,0.050036,99902.0,99900.0,0.27965832]
[1734068731121,0.3608,99901.0,99900.0,0.1]
[1734068731315,0.3608,99901.0,99900.0,0.27965832]
[1734068731613,0.46088958,99901.0,99900.0,0.1]
[1734068731915,0.46088958,99901.0,99883.0,0.29998442]
[1734068732119,0.3608,99887.0,99880.0,0.29998442]
[1734068732419,0.3608,99887.0,99873.0,0.11095]
[1734068732420,0.050049,99876.0,99875.0,0.0318]
[1734068732720,0.050049,99876.0,99875.0,0.0756083]
[1734068734824,0.0102249,99885.0,99875.0,0.0318]
[1734068735017,0.411844,99887.0,99875.0,0.33578442]
[1734068735222,0.411844,99887.0,99876.0,0.29998442]
[1734068735427,0.411844,99887.0,99882.0,0.050046]
[1734068735620,0.3608,99901.0,99880.0,0.66078442]
[1734068735818,0.3608,99901.0,99895.0,0.050039]
[1734068736022,0.3608,99901.0,99896.0,0.0974]
[1734068736424,0.050038,99898.0,99896.0,0.0974]
[1734068737222,0.050038,99898.0,99896.0,0.147439]
[1734068737527,0.050038,99898.0,99897.0,0.79]
[1734068739028,0.051038,99898.0,99897.0,0.79]
[1734068739923,0.051038,99898.0,99897.0,0.83379934]
[1734068740122,0.051038,99898.0,99897.0,1.10182687]
[1734068740428,0.051038,99898.0,99897.0,1.40103951]
[1734068740728,0.001,99898.0,99897.0,0.61103951]
[1734068740930,0.3608,99907.0,99897.0,0.31172787]
[1734068741232,0.3608,99907.0,99906.0,0.050034]
[1734068741429,0.3608,99907.0,99906.0,0.09383334]
[1734068742127,0.3618,99907.0,99906.0,0.09383334]
[1734068742529,0.3608,99907.0,99906.0,0.09383334]
[1734068742733,0.3618,99907.0,99906.0,0.09383334]
[1734068743032,0.3638,99907.0,99906.0,0.09383334]
[1734068747027,0.3638,99907.0,99906.0,0.050034]
[1734068748540,0.3638,99907.0,99906.0,0.09382784]
[1734068749038,0.003,99907.0,99906.0,0.09382784]
[1734068749241,0.003,99907.0,99906.0,0.36105251]
[1734068753444,0.003,99907.0,99906.0,0.050034]
[1734068755437,0.003,99907.0,99906.0,0.09382712]
[1734068756645,0.003,99907.0,99906.0,0.050034]
[1734068759449,0.003,99907.0,99906.0,0.31861327]
[1734068759650,0.003,99907.0,99906.0,0.050034]
[1734068761153,0.003,99907.0,99906.0,0.3493706]
[1734068761342,0.003,99907.0,99906.0,0.050034]
[1734068761549,0.003,99907.0,99906.0,0.31837936]
[1734068761953,0.003,99907.0,99906.0,0.61771098]
[1734068762154,0.003,99907.0,99906.0,0.31851613]
[1734068762547,0.003,99907.0,99906.0,0.61790143]
[1734068762753,0.003,99907.0,99906.0,0.31851613]
[1734068763652,0.003,99907.0,99906.0,0.36230727]
[1734068764157,0.003,99907.0,99906.0,0.7224323]
[1734068764352,0.003,99907.0,99906.0,0.36230727]
[1734068764657,0.003,99907.0,99906.0,0.72189628]
[1734068764957,0.003,99907.0,99906.0,0.36230727]
[1734068765343,0.10309358,99907.0,99906.0,0.26848213]
[1734068765553,0.16929358,99907.0,99906.0,0.31227528]
[1734068765754,0.16929358,99907.0,99906.0,0.04379315]
[1734068766056,0.25912625,99907.0,99897.0,0.29982514]
[1734068766352,0.050038,99898.0,99897.0,0.29982514]
[1734068766655,0.050038,99898.0,99896.0,0.29982514]
[1734068766853,0.050038,99898.0,99897.0,0.34362589]
[1734068767051,0.050038,99898.0,99897.0,0.04380075]
[1734068767250,0.050038,99898.0,99897.0,0.04480075]
[1734068768150,0.051038,99898.0,99897.0,0.04480075]
[1734068772044,0.051038,99898.0,99897.0,0.34462589]
[1734068772249,0.051038,99898.0,99897.0,0.31508931]
[1734068772657,0.051038,99898.0,99897.0,0.27128856]
[1734068773566,0.051038,99898.0,99897.0,0.68756744]
[1734068773567,0.001,99898.0,99897.0,0.68756744]
[1734068773859,0.050033,99909.0,99897.0,0.40438463]
[1734068774063,0.050033,99909.0,99906.0,0.29965751]
[1734068774454,0.3608,99910.0,99907.0,0.04379693]
[1734068774657,0.0323,99921.0,99908.0,0.26741545]
[1734068774965,0.050028,99918.0,99913.0,0.05003]
[1734068775255,0.0323,99921.0,99914.0,0.0437924]
[1734068775452,0.050027,99920.0,99918.0,0.23969364]
[1734068775852,0.0323,99921.0,99917.0,0.23969364]
[1734068776259,0.0323,99921.0,99920.0,0.23969364]
[1734068776457,0.0323,99921.0,99919.0,0.050027]
[1734068776962,0.0333,99921.0,99919.0,0.050027]
[1734068777152,0.004,99920.0,99919.0,0.050027]
[1734068777866,0.004,99920.0,99919.0,0.840027]
[1734068778061,0.09133448,99931.0,99919.0,1.10844467]
[1734068778256,0.00150181,99931.0,99930.0,0.050022]
[1734068778456,0.00150181,99931.0,99930.0,0.45460543]
[1734068778756,0.00150181,99931.0,99930.0,0.71844053]
[1734068778950,0.0314,99943.0,99941.0,0.050016]
[1734068779760,0.050017,99941.0,99936.0,0.2395264]
[1734068780059,0.050017,99941.0,99935.0,0.2395264]
[1734068780367,0.050017,99941.0,99934.0,0.2395264]
[1734068780874,0.050017,99941.0,99938.0,0.050018]
[1734068781450,0.058017,99941.0,99938.0,0.050018]
[1734068782056,0.059017,99941.0,99938.0,0.050018]
[1734068782451,0.064017,99941.0,99938.0,0.050018]
[1734068783267,0.059017,99941.0,99938.0,0.050018]
[1734068783456,0.059017,99941.0,99938.0,0.051018]
[1734068783457,0.064017,99941.0,99938.0,0.051018]
[1734068787667,0.014,99941.0,99939.0,0.050017]
[1734068788761,0.018,99941.0,99939.0,0.051017]
[1734068794565,0.018,99941.0,99940.0,0.050017]
[1734068795666,0.009,99941.0,99940.0,0.050017]
[1734068795875,0.018,99941.0,99940.0,0.051017]
[1734068801064,0.17243967,99961.0,99940.0,0.3618]
[1734068801378,0.050008,99958.0,99951.0,0.050012]
[1734068801569,0.01001204,99956.0,99951.0,0.840012]
[1734068801980,0.050008,99958.0,99951.0,0.840012]
[1734068802282,0.01950142,99952.0,99951.0,1.0795384]
[1734068803173,0.01950142,99952.0,99951.0,0.840012]
[1734068803677,0.01050142,99952.0,99951.0,0.840012]
[1734068803977,0.01950142,99952.0,99951.0,0.841012]
[1734068804176,0.01050142,99952.0,99951.0,0.842012]
[1734068804671,0.01050142,99952.0,99951.0,0.052012]
[1734068806575,0.009997,99962.0,99956.0,0.050009]
[1734068807163,0.050005,99964.0,99956.0,0.050009]
[1734068807775,0.08983267,99965.0,99956.0,0.051009]
[1734068807965,0.3698,99957.0,99956.0,0.052009]
[1734068810084,0.410809,99957.0,99956.0,0.24962337]
[1734068810269,0.410809,99957.0,99956.0,0.009]
[1734068810767,0.05001,99954.0,99948.0,0.29951108]
[1734068810977,0.05001,99954.0,99953.0,0.050011]
[1734068811278,0.05001,99954.0,99953.0,0.28963041]
[1734068811674,0.05001,99954.0,99953.0,0.050011]
[1734068813367,0.05001,99954.0,99953.0,0.059011]
[1734068820681,0.3608,99957.0,99956.0,0.050009]
[1734068821877,0.00982708,99966.0,99956.0,0.26071315]
[1734068822080,0.3608,99968.0,99961.0,0.2995409]
[1734068822283,0.3608,99968.0,99967.0,0.050003]
[1734068822680,0.00150104,99972.0,99971.0,0.050001]
[1734068822983,0.00150104,99972.0,99971.0,0.30773004]
[1734068823184,0.00150104,99972.0,99971.0,0.36421216]
[1734068823388,0.00150104,99972.0,99971.0,0.30773004]
[1734068823787,0.00150104,99972.0,99971.0,0.30873004]
[1734068824091,0.049997,99980.0,99978.0,0.049998]
[1734068824590,0.049994,99986.0,99980.0,0.049997]
[1734068824784,0.049994,99986.0,99980.0,0.28930294]
[1734068825386,0.06057471,99989.0,99980.0,0.23930594]
[1734068825387,0.0301,99989.0,99980.0,0.23930594]
[1734068825593,0.0301,99989.0,99984.0,0.049995]
[1734068826986,0.007,99986.0,99984.0,0.050995]
[1734068827286,0.056994,99986.0,99984.0,0.050995]
[1734068827677,0.049994,99986.0,99984.0,0.051995]
[1734068828283,0.049994,99986.0,99985.0,0.79]
[1734068828480,0.056994,99986.0,99985.0,0.79]
[1734068829887,0.049994,99986.0,99985.0,0.79]
[1734068830075,0.049994,99986.0,99985.0,0.792]
[1734068830076,0.056994,99986.0,99985.0,0.792]
[1734068830281,0.056994,99986.0,99985.0,0.002]
[1734068832287,0.417794,99986.0,99985.0,0.002]
[1734068832480,0.056994,99986.0,99985.0,0.002]
[1734068833480,0.417794,99986.0,99985.0,0.002]
[1734068847196,0.42780911,99986.0,99985.0,0.002]
[1734068849599,0.42780911,99986.0,99985.0,0.24130594]
[1734068851497,0.51764178,99986.0,99985.0,0.002]
[1734068852607,0.42780911,99986.0,99985.0,0.002]
[1734068855894,0.51765591,99986.0,99985.0,0.002]
[1734068856198,0.42780911,99986.0,99985.0,0.002]
[1734068856696,0.5176564,99986.0,99985.0,0.002]
[1734068857599,0.42780911,99986.0,99985.0,0.002]
[1734068861608,0.42780911,99986.0,99985.0,0.30126609]
[1734068862098,0.06700911,99986.0,99985.0,0.002]
[1734068862304,0.42780911,99986.0,99985.0,0.002]
[1734068862513,0.42780911,99986.0,99985.0,0.30126609]
[1734068863898,0.417794,99986.0,99985.0,0.56226478]
[1734068864198,0.3678,99986.0,99985.0,0.31958682]
[1734068864402,0.3678,99986.0,99985.0,1.15334789]
[1734068864592,0.3678,99986.0,99985.0,1.21744789]
[1734068865596,0.007,99986.0,99985.0,1.21744789]
[1734068865794,0.007,99986.0,99985.0,1.22770722]
[1734068866211,0.007,99986.0,99985.0,1.5876053]
[1734068866410,0.08985819,99990.0,99985.0,1.12735802]
[1734068866713,0.11972848,100010.0,100000.0,0.049987]
[1734068866901,0.69016429,100020.0,100010.0,0.049982]
[1734068867096,0.69016429,100020.0,100010.0,0.56626877]
[1734068867502,0.69016429,100020.0,100010.0,0.92693699]
[1734068867503,0.14971104,100020.0,100010.0,0.92693699]
[1734068867704,0.45867809,100030.0,100010.0,1.04695188]
[1734068867905,0.40870209,100030.0,100020.0,0.1796872]
[1734068868106,0.39874624,100030.0,100020.0,0.1796872]
[1734068868612,0.19955754,100030.0,100020.0,0.1796872]
[1734068869116,0.054974,100030.0,100010.0,0.510882]
[1734068869410,0.054974,100030.0,100020.0,0.049977]
[1734068869411,0.415774,100030.0,100020.0,0.049977]
[1734068869999,0.415774,100030.0,100020.0,1.25895309]
[1734068870399,0.410774,100030.0,100020.0,1.25995309]
[1734068871013,0.410774,100030.0,100020.0,1.26095309]
[1734068872111,0.410774,100030.0,100020.0,0.47095309]
[1734068872608,0.410774,100030.0,100020.0,0.18156118]
[1734068875610,0.410774,100030.0,100020.0,0.002]
[1734068875807,0.410774,100030.0,100020.0,0.18156118]
[1734068876415,0.410774,100030.0,100020.0,0.002]
[1734068881922,0.510749,100030.0,100020.0,0.002]
[1734068882325,0.543149,100030.0,100020.0,0.002]
[1734068883920,0.576149,100030.0,100020.0,0.002]
[1734068887118,0.576149,100030.0,100020.0,1e-06]
[1734068887318,0.72563961,100030.0,100020.0,1e-06]
[1734068890026,0.74599476,100030.0,100020.0,1e-06]
[1734068890422,0.74599476,100030.0,100020.0,0.790001]
[1734068891225,0.74599476,100030.0,100020.0,1e-06]
[1734068891626,0.74599476,100030.0,100020.0,0.790001]
[1734068892720,0.74599476,100030.0,100020.0,1e-06]
[1734068892927,0.9253835,100030.0,100020.0,1e-06]
[1734068894624,0.92513806,100030.0,100020.0,1e-06]
[1734068894926,0.92513814,100030.0,100020.0,1e-06]
[1734068895232,0.77589289,100030.0,100020.0,1e-06]
[1734068896928,0.74581719,100030.0,100020.0,1e-06]
[1734068899432,1.10661719,100030.0,100020.0,1e-06]
[1734068903233,1.13669289,100030.0,100020.0,1e-06]
[1734068903430,1.2860151,100030.0,100020.0,1e-06]
[1734068903625,1.13669289,100030.0,100020.0,1e-06]
[1734068908429,1.10429289,100030.0,100020.0,1e-06]
[1734068908633,1.07129289,100030.0,100020.0,0.17956218]
[1734068908933,1.07129289,100030.0,100020.0,0.21046218]
[1734068908934,1.22070095,100030.0,100020.0,0.21046218]
[1734068909137,1.22070095,100030.0,100020.0,0.48117709]
[1734068909440,1.12072595,100030.0,100020.0,0.48117709]
[1734068909631,0.94133721,100030.0,100020.0,0.48117709]
[1734068928046,0.94133721,100030.0,100020.0,0.44987709]
[1734068928349,0.94133721,100030.0,100020.0,0.41897709]
[1734068928550,1.25220095,100030.0,100020.0,0.17956218]
[1734068928747,1.28320095,100030.0,100020.0,0.17956218]
[1734068929350,1.13379289,100030.0,100020.0,0.17956218]
[1734068936863,1.11343774,100030.0,100020.0,0.17956218]
[1734068938767,1.11343774,100030.0,100010.0,0.23941491]
[1734068938768,0.049977,100020.0,100010.0,0.23941491]
[1734068938954,0.77008965,100020.0,100010.0,0.23941491]
[1734068939464,0.87006465,100020.0,100010.0,0.23941491]
[1734068939964,0.7215589,100020.0,100010.0,0.001]
[1734068940170,0.7215589,100020.0,100010.0,0.002]